fUSD/lending_fUSD_20260112
["ID","MTS","AMOUNT","RATE_DAILY","PERIOD"]
[401415472,1768194292572,500.0,0.00012488,2]
[401415473,1768194292968,500.0,0.00012488,2]
[401415474,1768194293422,500.0,0.00012488,2]
[401415475,1768194293916,500.0,0.00012488,2]
[401415476,1768194294426,500.0,0.00012488,2]
[401415477,1768194294851,500.0,0.00012488,2]
[401415478,1768194295276,500.0,0.00012488,2]
[401415479,1768194295757,500.0,0.00012488,2]
[401415480,1768194296181,500.0,0.00012488,2]
[401415481,1768194296663,500.0,0.00012488,2]
[401415482,1768194297067,500.0,0.00012488,2]
[401415483,1768194297482,500.0,0.00012488,2]
[401415484,1768194297927,56.47105555,0.00012488,2]
[401415485,1768194297951,443.52894445,0.00012488,2]
[401415486,1768194298442,500.0,0.00012488,2]
[401415487,1768194298920,500.0,0.00012488,2]
[401415488,1768194299392,500.0,0.00012488,2]
[401415489,1768194299825,500.0,0.00012488,2]
[401415490,1768194300261,301.9716591,0.00012488,2]
[401415491,1768194302346,1200.0,0.00012587,2]
[401415492,1768194334461,500.0,0.00012587,2]
[401415493,1768194334506,500.0,0.00012587,2]
[401415494,1768194334555,548.07853368,0.00012587,2]
[401415495,1768194343684,168.63911132,0.00012488,2]
[401415496,1768194361859,300.0,0.00012587,2]
[401415497,1768194362375,150.0,0.00012587,2]
[401415498,1768194363385,500.0,0.00012587,2]
[401415499,1768194363896,500.0,0.00012587,2]
[401415500,1768194369736,344.60408669,0.00012587,2]
[401415501,1768194378203,291.95835662,0.00012587,2]
[401415502,1768194391091,-344.18450756,0.00012588,2]
[401415503,1768194400360,500.0,0.00012587,2]
[401415504,1768194421967,300.0,0.00012587,2]
[401415505,1768194422007,1500.0,0.000129,4]
[401415506,1768194423242,300.0,0.00012587,2]
[401415507,1768194423667,3100.0,0.000139,5]
[401415508,1768194423859,195.0,0.00012587,2]
[401415509,1768194424743,302.43421383,0.00012587,2]
[401415510,1768194427088,-46944.55615753,0.00012588,2]
[401415511,1768194434081,-2339.72944343,0.00012588,2]
[401415512,1768194438359,151.0,0.0001258,2]
[401415513,1768194438979,151.0,0.0001258,2]
[401415514,1768194440106,151.0,0.0001258,2]
[401415515,1768194441256,151.0,0.0001258,2]
[401415516,1768194441889,151.0,0.0001258,2]
[401415517,1768194442482,151.0,0.0001258,2]
[401415518,1768194443641,151.0,0.0001258,2]
[401415519,1768194443752,151.0,0.0001258,2]
[401415520,1768194444313,151.0,0.0001258,2]
[401415521,1768194445142,151.0,0.0001258,2]
[401415522,1768194445645,151.0,0.0001258,2]
[401415523,1768194446299,151.0,0.0001258,2]
[401415524,1768194446958,151.0,0.0001258,2]
[401415525,1768194448051,205.56016723,0.000202,30]
[401415526,1768194450099,-4848.82839178,0.00012588,2]
[401415528,1768194464540,2636.29569786,0.00012488,2]
[401415529,1768194464565,7641.43834386,0.00012488,2]
[401415530,1768194479626,241.22286068,0.00012587,2]
[401415531,1768194542285,300.0,0.00012587,2]
[401415532,1768194546675,372.48812552,0.00012587,2]
[401415533,1768194548076,-250.0,0.00012588,2]
[401415534,1768194548097,-253.0,0.00012588,2]
[401415535,1768194548119,-200.0,0.00012588,2]
[401415536,1768194548139,-200.0,0.00012588,2]
[401415537,1768194548161,-15109.5247823,0.00012588,2]
[401415538,1768194548184,-151.0,0.00012588,2]
[401415539,1768194548206,-361.339,0.00012588,2]
[401415540,1768194548227,-195.0,0.0001259,2]
[401415541,1768194548249,-166.66,0.00012591,2]
[401415542,1768194548271,-1000.0,0.00012595,2]
[401415543,1768194548292,-16563.35195318,0.00012595,2]
[401415544,1768194561958,500.0,0.00012587,2]
[401415545,1768194562168,500.0,0.00012587,2]
[401415546,1768194562222,444.86066994,0.00012587,2]
[401415547,1768194562251,55.13933006,0.00012587,2]
[401415548,1768194562308,500.0,0.00012587,2]
[401415549,1768194562358,500.0,0.00012587,2]
[401415550,1768194562410,310.48191406,0.00012587,2]
[401415551,1768194617903,254.06737771,0.00012587,2]
[401415552,1768194620723,-233.47671862,0.00012595,2]
[401415553,1768194622763,-19.52328138,0.00012595,2]
[401415554,1768194622787,-195.8197408,0.00012595,2]
[401415555,1768194625219,-433.95167045,0.00012595,2]
[401415559,1768194632086,-2599.40233557,0.00012595,2]
[401415560,1768194632096,-250.0,0.00012615,2]
[401415561,1768194632107,-200.0,0.00012714,2]
[401415562,1768194632117,-198.74129391,0.00012841,2]
[401415563,1768194632127,-999.99,0.00012841,2]
[401415564,1768194632137,-300.0,0.00012849,2]
[401415565,1768194632146,-1200.0,0.00012849,2]
[401415566,1768194632156,-150.99,0.0001285,2]
[401415567,1768194632167,-5445.96,0.0001285,2]
[401415568,1768194632177,-2649.93,0.0001285,2]
[401415569,1768194632186,-9999.99,0.0001285,2]
[401415570,1768194632196,-2841.9,0.0001285,2]
[401415571,1768194632206,-299.99,0.0001285,2]
[401415572,1768194632225,-150.99,0.0001285,2]
[401415573,1768194632238,-166.66,0.0001285,2]
[401415574,1768194632248,-1000.0,0.00012855,2]
[401415575,1768194632260,-10277.73404171,0.00013089,2]
[401415576,1768194632270,-166.66,0.0001311,2]
[401415577,1768194632282,-150.0,0.0001326,2]
[401415578,1768194632292,-2354.19829399,0.0001332,2]
[401415579,1768194632302,-166.66,0.00013369,2]
[401415580,1768194632313,-12275.41813326,0.00013379,2]
[401415581,1768194632323,-200.0,0.00013404,2]
[401415582,1768194632333,-1870.41,0.00013404,2]
[401415583,1768194632342,-154.087793,0.00013424,2]
[401415584,1768194632353,-500.0,0.00013424,2]
[401415585,1768194632365,-150.0,0.00013424,2]
[401415586,1768194632376,-150.0,0.00013424,2]
[401415587,1768194632387,-150.0,0.00013424,2]
[401415588,1768194632397,-500.0,0.00013424,2]
[401415589,1768194632407,-150.0,0.00013424,2]
[401415590,1768194632417,-150.0,0.00013424,2]
[401415591,1768194632428,-150.0,0.00013424,2]
[401415593,1768194632439,-150.0,0.00013424,2]
[401415594,1768194632450,-150.0,0.00013424,2]
[401415595,1768194632460,-69203.92,0.00013425,2]
[401415596,1768194632469,-500.0,0.00013479,2]
[401415597,1768194632481,-150.0,0.00013479,2]
[401415598,1768194632492,-150.0,0.00013479,2]
[401415599,1768194632502,-150.0,0.00013479,2]
[401415600,1768194632517,-150.96535916,0.00013479,2]
[401415601,1768194632527,-500.0,0.00013479,2]
[401415602,1768194632536,-150.0,0.00013479,2]
[401415603,1768194632547,-150.0,0.00013479,2]
[401415604,1768194632558,-150.0,0.00013479,2]
[401415605,1768194632568,-150.0,0.00013479,2]
[401415606,1768194632579,-500.0,0.00013529,2]
[401415607,1768194632590,-150.0,0.00013529,2]
[401415608,1768194632600,-252.87382707,0.00013534,2]
[401415609,1768194632610,-150.0,0.00013534,2]
[401415610,1768194632620,-150.0,0.00013534,2]
[401415611,1768194632630,-150.0,0.00013534,2]
[401415612,1768194632640,-282.10315697,0.00013534,2]
[401415613,1768194632650,-160.92556746,0.00013534,2]
[401415614,1768194632661,-204.15967263,0.00013534,2]
[401415615,1768194632671,-161.0,0.00013534,2]
[401415616,1768194632680,-500.0,0.00013534,2]
[401415617,1768194632690,-500.0,0.00013584,2]
[401415618,1768194632700,-150.0,0.00013584,2]
[401415619,1768194632710,-202.62137386,0.00013588,2]
[401415620,1768194632720,-296.09401039,0.00013588,2]
[401415621,1768194632730,-150.0,0.00013588,2]
[401415622,1768194632739,-17700.07,0.00013629,2]
[401415623,1768194632748,-166.66,0.00013629,2]
[401415624,1768194632758,-500.0,0.00013639,2]
[401415625,1768194632768,-150.0,0.00013639,2]
[401415626,1768194632781,-150.0,0.00013643,2]
[401415627,1768194632791,-3566.84720867,0.00013691,2]
[401415628,1768194632834,-1293.07089697,0.00013691,2]
[401415629,1768194632846,-994.88176241,0.00013691,2]
[401415630,1768194632863,-715.61131561,0.00013691,2]
[401415631,1768194632879,-3707.32285805,0.00013691,2]
[401415632,1768194632888,-500.0,0.00013693,2]
[401415633,1768194632898,-257.99250845,0.00013693,2]
[401415634,1768194632908,-178.73,0.00013698,2]
[401415635,1768194632919,-500.0,0.00013698,2]
[401415636,1768194632928,-500.0,0.00013698,2]
[401415637,1768194632938,-500.0,0.00013698,2]
[401415638,1768194632947,-500.0,0.00013698,2]
[401415639,1768194632957,-506.26751507,0.00013698,2]
[401415640,1768194632967,-500.0,0.00013698,2]
[401415641,1768194632977,-500.0,0.00013698,2]
[401415642,1768194632987,-500.0,0.00013698,2]
[401415643,1768194632996,-500.0,0.00013698,2]
[401415644,1768194633007,-341.67884985,0.00013698,2]
[401415645,1768194633017,-500.0,0.00013698,2]
[401415646,1768194633027,-602.58106697,0.00013698,2]
[401415647,1768194633037,-500.0,0.00013698,2]
[401415648,1768194633047,-500.0,0.00013698,2]
[401415649,1768194633057,-500.0,0.00013698,2]
[401415650,1768194633067,-500.0,0.00013698,2]
[401415651,1768194633077,-500.0,0.00013698,2]
[401415652,1768194633087,-500.0,0.00013698,2]
[401415653,1768194633097,-540.03623195,0.00013698,2]
[401415654,1768194633107,-500.0,0.00013698,2]
[401415655,1768194633116,-500.0,0.00013698,2]
[401415656,1768194633127,-500.0,0.00013698,2]
[401415657,1768194633137,-500.0,0.00013698,2]
[401415658,1768194633146,-500.0,0.00013698,2]
[401415659,1768194633156,-500.0,0.00013698,2]
[401415660,1768194633166,-500.0,0.00013698,2]
[401415661,1768194633181,-500.0,0.00013698,2]
[401415662,1768194633192,-500.0,0.00013698,2]
[401415663,1768194633202,-500.0,0.00013698,2]
[401415664,1768194633212,-330.30276578,0.00013698,2]
[401415665,1768194633223,-500.0,0.00013698,2]
[401415666,1768194633235,-500.0,0.00013698,2]
[401415667,1768194633245,-500.0,0.00013698,2]
[401415668,1768194633256,-503.23607538,0.00013698,2]
[401415669,1768194633266,-500.0,0.00013698,2]
[401415670,1768194633277,-500.0,0.00013698,2]
[401415671,1768194633288,-500.0,0.00013698,2]
[401415672,1768194633299,-500.0,0.00013698,2]
[401415673,1768194633309,-500.0,0.00013698,2]
[401415674,1768194633320,-500.0,0.00013698,2]
[401415675,1768194633330,-500.0,0.00013698,2]
[401415676,1768194633340,-500.0,0.00013698,2]
[401415677,1768194633350,-500.0,0.00013698,2]
[401415678,1768194633360,-518.76755169,0.00013698,2]
[401415679,1768194633370,-500.0,0.00013698,2]
[401415680,1768194633380,-500.0,0.00013698,2]
[401415681,1768194633391,-500.0,0.00013698,2]
[401415682,1768194633401,-508.50378479,0.00013698,2]
[401415683,1768194633412,-500.0,0.00013698,2]
[401415684,1768194633423,-404.20947906,0.00013698,2]
[401415685,1768194633433,-512.2174814,0.00013698,2]
[401415686,1768194633446,-507.848456,0.00013698,2]
[401415687,1768194633456,-502.8163204,0.00013698,2]
[401415688,1768194633466,-1282.33,0.00013698,2]
[401415689,1768194633476,-356.46360209,0.00013698,2]
[401415690,1768194633487,-500.0,0.00013698,2]
[401415691,1768194633496,-509.50574001,0.00013698,2]
[401415692,1768194633511,-500.0,0.00013698,2]
[401415693,1768194633522,-522.22729333,0.00013698,2]
[401415694,1768194633533,-507.73004524,0.00013698,2]
[401415695,1768194633543,-526.37134529,0.00013698,2]
[401415696,1768194633553,-4549.46,0.00013699,2]
[401415697,1768194633563,-500.0,0.00013748,2]
[401415698,1768194633574,-500.0,0.00013803,2]
[401415699,1768194633583,-500.0,0.00013808,2]
[401415700,1768194633594,-500.0,0.00013829,2]
[401415701,1768194633605,-300.0,0.00013846,2]
[401415702,1768194633615,-195.0,0.00013846,2]
[401415703,1768194633626,-300.0,0.00013846,2]
[401415704,1768194633637,-1936.99946493,0.00013846,2]
[401415705,1768194633647,-300.0,0.00013846,2]
[401415706,1768194633657,-195.0,0.00013846,2]
[401415707,1768194633668,-195.0,0.00013846,2]
[401415708,1768194633678,-600.0,0.00013846,2]
[401415709,1768194633689,-600.0,0.00013846,2]
[401415710,1768194633699,-600.0,0.00013846,2]
[401415711,1768194633709,-600.0,0.00013846,2]
[401415712,1768194633721,-600.0,0.00013846,2]
[401415713,1768194633731,-250.0,0.00013846,2]
[401415714,1768194633741,-2500.0,0.00013846,2]
[401415715,1768194633751,-2500.0,0.00013846,2]
[401415716,1768194633761,-2500.0,0.00013846,2]
[401415717,1768194633771,-2500.0,0.00013846,2]
[401415718,1768194633781,-496.45597914,0.00013846,2]
[401415719,1768194633793,-250.0,0.00013855,2]
[401415720,1768194633803,-500.0,0.00013858,2]
[401415721,1768194633813,-12275.41813319,0.00013881,2]
[401415722,1768194633823,-500.0,0.00013913,2]
[401415723,1768194633833,-500.0,0.00013967,2]
[401415724,1768194633843,-721.83526628,0.00013972,2]
[401415725,1768194633881,-538.75871014,0.00013972,2]
[401415726,1768194633948,-21.73602358,0.00013972,2]
[401415727,1768194633959,-500.0,0.00014022,2]
[401415728,1768194633969,-500.0,0.00014077,2]
[401415729,1768194633978,-500.0,0.00014082,2]
[401415730,1768194633989,-420.0,0.00014094,2]
[401415731,1768194633999,-889.03306055,0.00014115,2]
[401415732,1768194634011,-231.88693945,0.00014115,2]
[401415733,1768194634021,-500.0,0.00014132,2]
[401415734,1768194634030,-100.34162867,0.00014134,2]
[401415735,1768194634043,-286.98,0.00014134,2]
[401415736,1768194634067,-1292.67837133,0.00014134,2]
[401415737,1768194634077,-307.32162867,0.00014164,2]
[401415738,1768194634088,-192.67837133,0.00014164,2]
[401415739,1768194634098,-426.6759618,0.00014187,2]
[401415740,1768194634111,-73.3240382,0.00014187,2]
[401415741,1768194634121,-306.38,0.00014194,2]
[401415742,1768194634131,-433.98,0.00014211,2]
[401415743,1768194634141,-500.0,0.00014219,2]
[401415744,1768194634150,-500.0,0.00014219,2]
[401415745,1768194634160,-500.0,0.00014241,2]
[401415746,1768194634170,-810.5526851,0.00014246,2]
[401415747,1768194634183,-254.03914982,0.00014246,2]
[401415748,1768194638190,-166.68,0.00013699,2]
[401415749,1768194638200,-217.73816508,0.00014246,2]
[401415750,1768194638209,-3791.57242938,0.00014292,2]
[401415751,1768194638221,-6486.16161233,0.00014292,2]
[401415752,1768194638231,-500.0,0.00014296,2]
[401415753,1768194638241,-130.78638793,0.00014296,2]
[401415754,1768194638253,-369.21361207,0.00014296,2]
[401415755,1768194638262,-500.0,0.00014296,2]
[401415756,1768194638272,-500.0,0.00014351,2]
[401415757,1768194638281,-305.71227501,0.00014356,2]
[401415758,1768194638290,-4549.46,0.00014384,2]
[401415759,1768194638300,-2804.82494029,0.00014384,2]
[401415760,1768194638350,-2607.29251717,0.00014384,2]
[401415761,1768194638365,-875.29292091,0.00014384,2]
[401415762,1768194638376,-920.62202553,0.00014384,2]
[401415763,1768194638387,-802.0,0.00014384,2]
[401415766,1768194638507,-252.9257169,0.00014384,2]
[401415768,1768194638519,-1856.24744887,0.00014384,2]
[401415771,1768194638531,-2156.21256352,0.00014384,2]
[401415773,1768194638541,-500.0,0.00014406,2]
[401415775,1768194638550,-15109.5247823,0.00014409,2]
[401415776,1768194638559,-500.0,0.00014461,2]
[401415778,1768194638569,-140.26265417,0.00014462,2]
[401415782,1768194638605,-859.73734583,0.00014462,2]
[401415784,1768194638615,-670.71,0.000145,2]
[401415786,1768194638625,-215.2930836,0.00014515,2]
[401415788,1768194638634,-1282.33,0.0001452,2]
[401415790,1768194638646,-500.0,0.00014568,2]
[401415791,1768194638655,-322.6107,0.00014701,2]
[401415792,1768194638665,-500.0,0.00014701,2]
[401415793,1768194638674,-250.0,0.00014701,2]
[401415794,1768194638684,-106.79751435,0.00014701,2]
[401415795,1768194638696,-427.09230056,0.00014701,2]
[401415796,1768194638706,-596.45794467,0.00014701,2]
[401415797,1768194638716,-500.0,0.00014701,2]
[401415798,1768194638725,-250.0,0.00014701,2]
[401415799,1768194638735,-500.0,0.00014701,2]
[401415800,1768194638745,-250.0,0.00014701,2]
[401415801,1768194638755,-500.0,0.00014701,2]
[401415802,1768194638765,-250.0,0.00014701,2]
[401415803,1768194638775,-452.82679036,0.00014701,2]
[401415804,1768194638787,-47.17320964,0.00014701,2]
[401415805,1768194638796,-250.0,0.00014701,2]
[401415806,1768194638806,-621.07435029,0.00014701,2]
[401415807,1768194638815,-354.6611943,0.00014701,2]
[401415808,1768194638825,-250.0,0.00014701,2]
[401415809,1768194638835,-250.0,0.00014701,2]
[401415810,1768194638844,-250.0,0.00014701,2]
[401415811,1768194638854,-250.0,0.00014701,2]
[401415812,1768194638864,-250.0,0.00014701,2]
[401415813,1768194638874,-250.0,0.00014701,2]
[401415814,1768194638884,-250.0,0.00014701,2]
[401415815,1768194638894,-250.0,0.00014701,2]
[401415816,1768194638903,-250.0,0.00014701,2]
[401415817,1768194638913,-683.82185525,0.00014701,2]
[401415818,1768194638923,-250.0,0.00014701,2]
[401415819,1768194638932,-274.26884757,0.00014701,2]
[401415820,1768194638943,-202.5130151,0.00014701,2]
[401415821,1768194638953,-250.0,0.00014701,2]
[401415822,1768194638963,-268.06518829,0.00014701,2]
[401415823,1768194638974,-250.0,0.00014701,2]
[401415824,1768194638984,-250.0,0.00014701,2]
[401415825,1768194638994,-250.0,0.00014701,2]
[401415826,1768194639004,-250.0,0.00014701,2]
[401415827,1768194639014,-620.0,0.00014701,2]
[401415828,1768194639024,-250.0,0.00014701,2]
[401415829,1768194639033,-250.0,0.00014701,2]
[401415830,1768194639041,-250.0,0.00014701,2]
[401415831,1768194639050,-250.0,0.00014701,2]
[401415832,1768194639059,-262.80813108,0.00014701,2]
[401415833,1768194639069,-1000.0,0.00014701,2]
[401415834,1768194639078,-1000.0,0.00014701,2]
[401415835,1768194639087,-151.25256783,0.00014701,2]
[401415836,1768194639098,-1000.0,0.00014701,2]
[401415837,1768194639108,-1000.0,0.00014701,2]
[401415838,1768194639117,-1000.0,0.00014701,2]
[401415839,1768194639127,-1000.0,0.00014701,2]
[401415840,1768194639136,-1000.0,0.00014701,2]
[401415841,1768194639145,-1000.0,0.00014701,2]
[401415842,1768194639155,-1000.0,0.00014701,2]
[401415843,1768194639164,-1000.0,0.00014701,2]
[401415844,1768194639173,-587.42192138,0.00014701,2]
[401415845,1768194639183,-1000.0,0.00014701,2]
[401415846,1768194639192,-1000.0,0.00014701,2]
[401415847,1768194639201,-1125.63397898,0.00014701,2]
[401415848,1768194639210,-250.0,0.00014701,2]
[401415849,1768194639219,-266.15702234,0.00014701,2]
[401415850,1768194639230,-250.0,0.00014701,2]
[401415851,1768194639241,-250.0,0.00014701,2]
[401415852,1768194639251,-270.2171612,0.00014701,2]
[401415853,1768194639260,-311.1,0.00014701,2]
[401415854,1768194639271,-998.0,0.00014701,2]
[401415855,1768194639281,-500.0,0.00014759,2]
[401415856,1768194639291,-500.0,0.00014759,2]
[401415857,1768194639301,-500.0,0.00014759,2]
[401415858,1768194639311,-1282.33,0.00014794,2]
[401415859,1768194639320,-12275.41813319,0.00014886,2]
[401415860,1768194639332,-10277.73404171,0.00014893,2]
[401415861,1768194639342,-34089.0,0.00015,2]
[401415862,1768194639351,-1282.33,0.00015068,2]
[401415863,1768194639362,-4549.46,0.00015068,2]
[401415864,1768194639372,-500.0,0.00015096,2]
[401415865,1768194639381,-180.0,0.00015104,2]
[401415866,1768194639391,-151.0,0.00015116,2]
[401415867,1768194639401,-151.0,0.00015154,2]
[401415868,1768194639412,-151.0,0.00015154,2]
[401415869,1768194639422,-155.25,0.00015168,2]
[401415870,1768194639432,-151.0,0.00015174,2]
[401415871,1768194639445,-151.0,0.00015174,2]
[401415872,1768194639454,-151.0,0.00015174,2]
[401415873,1768194639465,-151.0,0.00015174,2]
[401415874,1768194639475,-553.64373807,0.00015249,2]
[401415875,1768194639486,-322.6107,0.00015249,2]
[401415876,1768194639495,-5534.0,0.000153,3]
[401415877,1768194639505,-1282.33,0.00015342,2]
[401415878,1768194639516,-7613.48884776,0.00015388,2]
[401415879,1768194640991,-151.0,0.00015165,2]
[401415880,1768194641002,-108.96993834,0.00015388,2]
[401415881,1768194641054,-3756.97152716,0.00015388,2]
[401415882,1768194641070,-795.98781993,0.00015388,2]
[401415883,1768194641080,-587.0,0.00015458,2]
[401415884,1768194641089,-10277.73404171,0.00015495,2]
[401415885,1768194641099,-151.0,0.00015499,2]
[401415886,1768194641108,-5534.0,0.000155,5]
[401415887,1768194641118,-2351.0,0.00015548,2]
[401415888,1768194641127,-1282.33,0.00015616,2]
[401415889,1768194641137,-3731.00451843,0.0001564,2]
[401415890,1768194641147,-1120.92,0.00015683,2]
[401415891,1768194641156,-4549.46,0.00015753,2]
[401415892,1768194641166,-574.12855637,0.00015797,2]
[401415893,1768194641176,-307.00510982,0.00015797,2]
[401415894,1768194641186,-1282.33,0.0001589,2]
[401415895,1768194641196,-12275.41813319,0.00015891,2]
[401415896,1768194641206,-801.49309705,0.000159,2]
[401415897,1768194641216,-801.49309701,0.000159,2]
[401415898,1768194641225,-801.49309701,0.000159,2]
[401415899,1768194641234,-801.49309701,0.000159,2]
[401415900,1768194641244,-801.49309701,0.000159,2]
[401415901,1768194641254,-801.49309701,0.000159,2]
[401415902,1768194641263,-1000.0,0.00015918,2]
[401415903,1768194641273,-1000.0,0.00016069,2]
[401415904,1768194641282,-334.5472959,0.0001607,2]
[401415905,1768194641292,-642.94,0.0001607,2]
[401415906,1768194641301,-10277.73404171,0.00016096,2]
[401415907,1768194641311,-8070.0,0.00016096,2]
[401415908,1768194641322,-9999.99,0.00016116,2]
[401415909,1768194641332,-820.78,0.00016141,2]
[401415910,1768194641343,-500.0,0.00016149,2]
[401415911,1768194641355,-1282.33,0.00016164,2]
[401415912,1768194641364,-150.0,0.000162,2]
[401415913,1768194641374,-150.0,0.000162,2]
[401415914,1768194641384,-150.0,0.000162,2]
[401415915,1768194641393,-150.0,0.000162,2]
[401415916,1768194641403,-150.0,0.000162,2]
[401415917,1768194641413,-150.0,0.000162,2]
[401415918,1768194641422,-150.64069561,0.000162,2]
[401415919,1768194641432,-150.5110912,0.000162,2]
[401415920,1768194641442,-150.0,0.000162,2]
[401415921,1768194641455,-150.0,0.000162,2]
[401415922,1768194641465,-150.48103859,0.000162,2]
[401415923,1768194641475,-150.0,0.000162,2]
[401415924,1768194641484,-150.0,0.000162,2]
[401415925,1768194641494,-150.0,0.000162,2]
[401415926,1768194641504,-350.68764993,0.000162,2]
[401415927,1768194641514,-350.68764993,0.00016218,2]
[401415928,1768194641526,-15109.5247823,0.00016229,2]
[401415929,1768194641535,-350.68764993,0.00016236,2]
[401415930,1768194641544,-350.68764993,0.00016255,2]
[401415931,1768194641554,-350.68764993,0.00016273,2]
[401415932,1768194641564,-350.68764993,0.00016291,2]
[401415933,1768194641573,-350.68764993,0.00016309,2]
[401415934,1768194641583,-306.38,0.0001631,2]
[401415935,1768194641593,-350.68764993,0.00016327,2]
[401415936,1768194641603,-150.0,0.00016329,2]
[401415937,1768194641614,-150.0,0.00016329,2]
[401415938,1768194641624,-150.0,0.00016338,2]
[401415939,1768194641634,-595.37131296,0.00016345,2]
[401415940,1768194641643,-350.68764993,0.00016345,2]
[401415941,1768194641653,-150.0,0.0001635,2]
[401415942,1768194641663,-171.53,0.00016356,2]
[401415943,1768194641673,-171.53,0.00016356,2]
[401415944,1768194641683,-171.53,0.00016356,2]
[401415945,1768194641693,-350.68764993,0.00016364,2]
[401415946,1768194641702,-150.0,0.0001638,2]
[401415947,1768194641711,-350.68764993,0.00016382,2]
[401415948,1768194641720,-12275.41813319,0.00016393,2]
[401415949,1768194641730,-350.68764993,0.000164,2]
[401415950,1768194641739,-350.68764993,0.00016418,2]
[401415951,1768194641749,-150.0,0.00016425,2]
[401415952,1768194641758,-150.0,0.00016425,2]
[401415953,1768194641769,-350.68764993,0.00016436,2]
[401415954,1768194641779,-1282.33,0.00016438,2]
[401415955,1768194641788,-1046.89,0.00016438,2]
[401415956,1768194641797,-1046.89,0.00016438,2]
[401415957,1768194641806,-1046.89,0.00016438,2]
[401415958,1768194641815,-1046.89,0.00016438,2]
[401415959,1768194641824,-1046.89,0.00016438,2]
[401415960,1768194641833,-1046.89,0.00016438,2]
[401415961,1768194641842,-22329.89,0.00016438,2]
[401415962,1768194641852,-4549.46,0.00016438,2]
[401415963,1768194641861,-800.75292195,0.00016438,2]
[401415964,1768194641870,-494.0,0.00016438,2]
[401415965,1768194641880,-151.0,0.00016438,2]
[401415966,1768194641890,-661.95,0.00016441,2]
[401415967,1768194641899,-350.68764993,0.00016455,2]
[401415968,1768194641909,-150.0,0.00016457,2]
[401415969,1768194641918,-150.0,0.00016457,2]
[401415970,1768194641927,-350.68764993,0.00016473,2]
[401415971,1768194641936,-584.221,0.00016473,2]
[401415972,1768194641945,-150.0,0.00016477,2]
[401415973,1768194641954,-150.0,0.00016489,2]
[401415974,1768194641964,-350.68764993,0.00016491,2]
[401415975,1768194641973,-150.0,0.000165,2]
[401415976,1768194641982,-150.0,0.000165,2]
[401415977,1768194641991,-350.68764993,0.00016509,2]
[401415978,1768194642000,-1000.0,0.00016515,2]
[401415979,1768194642010,-350.68764993,0.00016527,2]
[401415980,1768194642019,-350.68764993,0.00016545,2]
[401415981,1768194642029,-150.0,0.0001656,2]
[401415982,1768194642039,-350.68764993,0.00016564,2]
[401415983,1768194642048,-171.53,0.00016578,2]
[401415984,1768194642057,-350.68764993,0.00016582,2]
[401415985,1768194642066,-150.0,0.00016586,2]
[401415986,1768194642076,-150.0,0.00016586,2]
[401415987,1768194642085,-350.68764993,0.000166,2]
[401415988,1768194642095,-150.0,0.00016615,2]
[401415989,1768194642104,-350.68764993,0.00016618,2]
[401415990,1768194642113,-350.68764993,0.00016636,2]
[401415991,1768194642123,-250.0,0.00016643,2]